bitfinex/quotes_ETHUSD_20250813
["timestamp","ask_amount","ask_price","bid_price","bid_amount"]
[1755061032509,1.1239,4671.0,4670.9,3.312]
[1755061032923,1.1239,4671.0,4670.1,2.668]
[1755061033114,0.1072,4670.5,4670.2,3.312]
[1755061033522,0.1072,4670.5,4670.3,3.312]
[1755061033738,0.5553,4670.5,4670.1,2.668]
[1755061034028,0.4481,4670.5,4670.4,3.312]
[1755061034927,0.1072,4670.5,4670.4,3.312]
[1755061035128,0.1072,4670.5,4670.1,2.668]
[1755061035129,0.5553,4670.5,4670.1,2.668]
[1755061035292,0.4481,4670.5,4670.2,3.312]
[1755061035692,0.1072,4670.3,4670.1,2.668]
[1755061036307,0.1072,4670.3,4670.2,3.311]
[1755061039532,0.1072,4670.3,4670.2,3.7404]
[1755061040035,0.1072,4670.3,4670.2,3.311]
[1755061040233,0.1072,4670.3,4670.2,4.3243]
[1755061040436,0.1072,4670.3,4670.2,3.311]
[1755061040607,0.1072,4670.3,4670.2,4.3243]
[1755061040810,0.002,4670.5,4670.2,4.3243]
[1755061041006,0.1092,4670.5,4670.3,1.0133]
[1755061041326,0.002,4670.5,4670.3,1.0133]
[1755061041531,0.002,4670.5,4670.2,3.4182]
[1755061042129,0.002,4670.5,4670.3,1.0133]
[1755061042501,0.002,4670.5,4670.3,0.5839]
[1755061042727,0.002,4670.5,4670.4,0.4294]
[1755061043708,0.002,4670.5,4670.3,0.5839]
[1755061044135,0.002,4670.5,4670.2,3.4182]
[1755061044303,0.002,4670.5,4670.3,3.311]
[1755061047001,0.002,4670.5,4670.4,5.131]
[1755061049028,0.002,4670.5,4670.4,5.5604]
[1755061049347,0.002,4670.5,4670.4,8.442]
[1755061050944,0.002,4670.5,4670.4,9.4803]
[1755061052344,0.002,4670.5,4670.4,9.5865]
[1755061053048,0.002,4670.5,4670.4,4.4555]
[1755061053549,0.00023678,4670.5,4670.4,5.27252883]
[1755061054069,0.00023678,4670.5,4670.4,5.0055]
[1755061055453,0.00023678,4670.5,4670.4,12.8045]
[1755061057753,0.00023678,4670.5,4670.4,7.9062]
[1755061058121,0.00023678,4670.5,4670.4,11.2162]
[1755061058954,0.00023678,4670.5,4670.4,11.109]
[1755061059525,0.00023678,4670.5,4670.4,7.799]
[1755061059839,1.03003678,4670.5,4670.4,11.109]
[1755061060323,0.42903678,4670.5,4670.4,11.109]
[1755061060833,1.03003678,4670.5,4670.4,11.108]
[1755061062857,1.03003678,4670.5,4670.4,7.799]
[1755061063353,1.03003678,4670.5,4670.4,11.108]
[1755061064327,1.03003678,4670.5,4670.4,7.799]
[1755061064644,1.03003678,4670.5,4670.4,11.108]
[1755061066229,1.13723678,4670.5,4670.4,11.108]
[1755061066430,1.25096046,4670.5,4670.4,11.108]
[1755061067663,1.25096046,4670.5,4670.4,5.131]
[1755061068854,1.25096046,4670.5,4670.4,8.44]
[1755061069553,1.25096046,4670.5,4670.4,5.131]
[1755061069862,1.25096046,4670.5,4670.4,8.44]
[1755061070073,3.94205884,4670.5,4670.4,5.131]
[1755061070243,0.55,4670.4,4669.6,0.001]
[1755061070441,0.55,4670.2,4669.7,3.309]
[1755061070663,1.0298,4670.1,4669.7,3.309]
[1755061070843,1.0298,4670.0,4669.7,3.309]
[1755061071035,0.55,4670.2,4669.7,3.309]
[1755061071240,1.0298,4669.9,4669.7,3.309]
[1755061071436,1.29498,4669.8,4669.7,3.309]
[1755061074485,1.84498,4669.8,4669.7,3.309]
[1755061075465,1.84498,4669.8,4669.6,0.001]
[1755061075765,0.81518,4669.8,4669.7,8.441]
[1755061075938,0.11396046,4670.5,4669.3,0.001]
[1755061075939,0.1072,4669.4,4669.3,0.001]
[1755061076140,0.1072,4669.4,4669.3,8.442]
[1755061076364,1.137,4669.4,4669.3,8.442]
[1755061080687,1.687,4669.4,4669.3,8.442]
[1755061082563,1.687,4669.4,4669.3,5.133]
[1755061082758,1.8557,4669.4,4669.3,5.133]
[1755061083866,1.8557,4669.4,4669.3,8.442]
[1755061086394,0.2759,4669.4,4669.3,8.442]
[1755061087410,0.1072,4669.4,4669.3,8.442]
[1755061088396,0.1072,4669.4,4669.3,8.8989]
[1755061088565,0.1072,4669.4,4669.3,8.442]
[1755061088974,1.0991,4669.4,4669.3,8.442]
[1755061089497,0.1072,4669.4,4669.3,8.442]
[1755061090865,1.0991,4669.4,4669.3,5.133]
[1755061091095,1.20901,4669.4,4669.3,8.442]
[1755061091476,1.20901,4669.4,4669.3,5.133]
[1755061092693,1.20901,4669.4,4669.3,8.441]
[1755061093519,1.75901,4669.4,4669.3,5.133]
[1755061093673,1.75901,4669.4,4669.3,8.441]
[1755061094198,1.75901,4669.4,4669.3,5.133]
[1755061094807,1.75901,4669.4,4668.9,0.001]
[1755061095110,1.167801,4669.3,4668.9,0.001]
[1755061095489,1.167801,4669.3,4669.0,8.442]
[1755061095692,0.9919,4669.2,4669.0,8.442]
[1755061095995,0.1072,4669.1,4669.0,8.442]
[1755061096568,0.5403,4669.1,4669.0,8.442]
[1755061096802,0.7228001,4669.1,4669.0,8.442]
[1755061097107,0.1072,4669.1,4669.0,8.442]
[1755061097467,0.1072,4669.1,4669.0,9.4499]
[1755061099466,0.1072,4669.1,4669.0,8.442]
[1755061100879,0.1072,4669.1,4669.0,9.4499]
[1755061101775,0.1092,4669.4,4669.0,9.4499]
[1755061101997,0.1092,4669.4,4669.1,1.0079]
[1755061101998,0.002,4669.4,4669.1,1.0079]
[1755061102189,0.002,4669.4,4669.2,3.307]
[1755061102374,0.002,4669.4,4669.3,0.1072]
[1755061102571,0.002,4669.4,4669.3,1.1151]
[1755061104773,0.002,4669.4,4669.0,5.134]
[1755061105044,0.002,4669.4,4669.1,3.307]
[1755061106608,0.9919,4669.3,4669.1,3.307]
[1755061106810,0.5588,4669.3,4669.1,3.307]
[1755061106982,0.4331,4669.2,4669.1,3.307]
[1755061107179,0.5588,4669.3,4669.1,3.307]
[1755061107910,0.002,4669.4,4669.1,3.307]
[1755061108411,0.002,4669.4,4669.1,3.7639]
[1755061109109,0.002,4669.4,4669.0,5.134]
[1755061109312,0.4331,4669.3,4669.1,3.306]
[1755061109489,0.002,4669.4,4669.1,3.306]
[1755061109904,0.002,4669.4,4669.1,3.749]
[1755061110091,0.002,4669.4,4669.2,0.9832]
[1755061110417,0.002,4669.4,4669.3,3.306]
[1755061110915,0.002,4669.4,4669.3,4.2892]
[1755061111088,0.002,4669.4,4669.3,3.306]
[1755061112828,0.002,4669.4,4669.3,4.2892]
[1755061122030,0.002,4669.4,4669.3,3.749]
[1755061122227,0.002,4669.4,4669.3,4.2892]
[1755061123345,0.002,4669.4,4669.3,3.306]
[1755061133232,0.4719,4669.4,4669.3,3.303]
[1755061133954,0.002,4669.4,4669.3,3.303]
[1755061141234,0.46888902,4669.4,4669.3,3.303]
[1755061141442,1.00478902,4669.4,4669.3,3.303]
[1755061141766,0.46888902,4669.4,4669.3,3.303]
[1755061142061,0.46888902,4669.4,4669.2,0.085573]
[1755061142062,1.00478902,4669.4,4669.2,0.085573]
[1755061142262,1.11198902,4669.4,4669.3,3.302]
[1755061142703,1.22318792,4669.4,4669.1,0.001]
[1755061142902,1.0046,4669.3,4669.2,3.302]
[1755061143068,1.0046,4669.3,4669.1,0.001]
[1755061143274,0.21858792,4669.4,4669.2,3.302]
[1755061143474,0.10738902,4669.4,4669.2,3.302]
[1755061143909,1.0046,4669.3,4669.2,3.302]
[1755061147626,0.10738902,4669.4,4669.2,3.302]
[1755061147991,0.00018902,4669.4,4669.2,3.302]
[1755061150831,1.0046,4669.3,4669.1,0.001]
[1755061150992,0.00018902,4669.4,4669.2,3.301]
[1755061151340,0.46888902,4669.4,4669.2,3.301]
[1755061151496,0.4687,4669.3,4669.2,3.301]
[1755061152121,0.00018902,4669.4,4669.2,3.301]
[1755061153218,1.0046,4669.3,4669.1,0.001]
[1755061153387,0.1072,4669.3,4669.1,0.001]
[1755061153591,1.0046,4669.2,4669.1,0.001]
[1755061153790,1.0046,4669.2,4669.1,3.302]
[1755061154593,0.4687,4669.2,4669.1,3.302]
[1755061155139,0.1072,4669.3,4669.1,3.302]
[1755061156440,0.4687,4669.2,4669.1,3.302]
[1755061156927,0.6431,4669.3,4669.1,3.302]
[1755061157328,0.4687,4669.2,4669.1,3.302]
[1755061159200,0.1072,4669.3,4669.1,0.001]
[1755061159400,1.0046,4669.2,4669.1,0.001]
[1755061159605,1.1157989,4669.2,4669.1,3.301]
[1755061160337,1.1157989,4669.2,4669.1,0.001]
[1755061160338,1.6657989,4669.2,4669.1,0.001]
[1755061160629,1.6657989,4669.2,4669.1,3.301]
[1755061164840,1.2229989,4669.2,4669.1,3.301]
[1755061166546,1.2229989,4669.2,4669.1,0.001]
[1755061166739,1.2229989,4669.2,4669.1,8.434]
[1755061167053,1.2229989,4669.2,4669.1,5.134]
[1755061167439,1.2229989,4669.2,4669.1,8.433]
[1755061172951,1.2229989,4669.2,4669.1,5.134]
[1755061173160,1.2229989,4669.2,4669.1,8.433]
[1755061173758,1.19113446,4669.2,4669.1,8.433]
[1755061176053,0.2183989,4669.2,4669.1,8.433]
[1755061176253,0.1072,4669.2,4669.1,8.433]
[1755061177062,1.0574,4669.2,4669.1,8.433]
[1755061179665,0.55,4669.1,4668.9,0.001]
[1755061179865,1.5002,4669.1,4669.0,8.432]
[1755061180065,1.6502389,4669.1,4669.0,8.432]
[1755061180273,1.1002389,4669.1,4669.0,8.432]
[1755061180471,0.00018902,4669.4,4669.0,8.432]
[1755061180768,0.9502,4669.3,4669.0,8.432]
[1755061180970,0.00018902,4669.4,4669.0,8.432]
[1755061181274,0.9502,4669.2,4669.0,8.432]
[1755061181579,0.9502,4669.1,4669.0,8.432]
[1755061187581,0.00018902,4669.4,4669.0,8.432]
[1755061188187,0.55,4669.3,4669.0,8.432]
[1755061188490,0.55,4669.3,4669.0,8.433]
[1755061189686,0.1072,4669.1,4669.0,8.433]
[1755061191464,0.1072,4669.1,4669.0,8.8863]
[1755061191669,0.1072,4669.1,4669.0,9.4185]
[1755061193969,0.1072,4669.1,4669.0,8.433]
[1755061195804,0.1072,4669.1,4669.0,8.431]
[1755061196900,0.1072,4669.1,4669.0,0.001]
[1755061197097,0.1072,4669.1,4669.0,8.431]
[1755061199819,1.0866,4669.1,4669.0,5.135]
[1755061200119,1.0866,4669.1,4669.0,8.43]
[1755061201094,0.1072,4669.1,4669.0,8.43]
[1755061201300,0.5608,4669.1,4669.0,8.43]
[1755061202011,0.1072,4669.1,4669.0,8.43]
[1755061206023,0.00018902,4669.4,4669.0,9.64882883]
[1755061206211,0.00018902,4669.4,4669.1,0.9823]
[1755061206523,0.00018902,4669.4,4669.0,5.6485]
[1755061206723,0.00018902,4669.4,4669.0,5.2422]
[1755061206911,0.00018902,4669.4,4669.1,3.294]
[1755061207316,0.00018902,4669.4,4669.2,3.294]
[1755061213404,0.9794,4669.3,4669.2,3.294]
[1755061215833,1.0866,4669.3,4669.2,3.294]
[1755061220137,0.1072,4669.3,4669.2,3.294]
[1755061220731,1.0866,4669.3,4669.0,5.135]
[1755061221033,0.5258,4669.2,4669.1,3.293]
[1755061221206,1.0880789,4669.2,4669.1,3.293]
[1755061221608,1.0880789,4669.2,4669.0,5.135]
[1755061221834,0.1086789,4669.2,4669.1,3.292]
[1755061222026,0.1072,4669.3,4669.1,3.292]
[1755061222211,0.1072,4669.3,4669.2,3.292]
[1755061223544,0.1072,4669.3,4669.2,3.7608]
[1755061224051,0.1072,4669.3,4669.2,3.292]
[1755061225050,0.1072,4669.3,4669.0,5.135]
[1755061225343,0.4536,4669.2,4669.1,3.292]
[1755061225640,0.1072,4669.3,4669.1,3.292]
[1755061226408,0.5608,4669.3,4669.0,5.135]
[1755061226640,0.5608,4669.3,4669.1,3.292]
[1755061226641,0.9794,4669.2,4669.1,3.292]
[1755061227219,0.55,4669.1,4668.9,0.001]
[1755061227438,1.5294,4669.1,4669.0,8.426]
[1755061227715,1.5294,4669.1,4669.0,5.134]
[1755061227939,0.55,4668.9,4668.7,0.001]
[1755061228252,0.1072,4669.0,4668.7,0.001]
[1755061228253,0.71366,4668.8,4668.7,0.001]
[1755061228454,0.71366,4668.8,4668.7,5.135]
[1755061228659,1.5294,4668.8,4668.7,5.135]
[1755061228844,1.5294,4668.8,4668.7,8.427]
[1755061229147,1.5294,4668.8,4668.7,5.134]
[1755061229350,1.5294,4668.8,4668.7,8.426]
[1755061230926,0.55,4668.7,4668.5,0.001]
[1755061231126,1.79206,4668.7,4668.5,0.001]
[1755061232130,1.79206,4668.7,4668.6,1.386]
[1755061232418,1.79206,4668.7,4668.0,0.001]
[1755061232619,0.55,4668.5,4668.0,0.001]
[1755061233138,1.5212,4668.5,4668.0,0.001]
[1755061233448,1.700406,4668.5,4668.0,0.001]
[1755061233632,1.700406,4668.5,4668.4,1.347]
[1755061233826,0.55,4668.4,4668.0,0.001]
[1755061234048,0.6572,4668.3,4668.0,0.001]
[1755061234279,1.1554,4668.3,4668.0,0.001]
[1755061234417,0.2879606,4668.3,4668.0,0.001]
[1755061234768,0.1072,4668.3,4668.0,0.001]
[1755061235335,1.0784,4668.3,4668.2,6.964]
[1755061235546,1.0784,4668.3,4668.2,5.135]
[1755061235761,1.0784,4668.3,4668.2,8.426]
[1755061236251,0.5802,4668.3,4668.2,8.426]
[1755061236774,0.1072,4668.3,4668.2,8.426]
[1755061237076,1.0784,4668.3,4668.2,8.426]
[1755061237860,1.6284,4668.3,4668.2,8.426]
[1755061238062,1.79124,4668.3,4668.2,8.426]
[1755061238745,1.79124,4668.3,4668.2,5.135]
[1755061239074,1.79124,4668.3,4668.2,8.426]
[1755061240374,0.82004,4668.3,4668.2,8.426]
[1755061240672,1.1302,4668.3,4668.2,8.426]
[1755061240872,1.6284,4668.3,4668.2,8.426]
[1755061242273,0.55,4668.3,4668.2,8.426]
[1755061242586,0.6572,4668.3,4668.2,8.426]
[1755061242797,0.1072,4668.3,4668.2,8.426]
[1755061243453,0.1072,4668.3,4668.2,9.3738]
[1755061243656,0.1072,4668.3,4668.2,10.018143]
[1755061243860,0.1072,4668.3,4668.2,9.3738]
[1755061244689,0.1072,4668.3,4668.2,5.135]
[1755061244883,0.1072,4668.3,4668.2,8.425]
[1755061245178,0.1072,4668.3,4668.2,9.3728]
[1755061251766,0.002,4669.3,4668.2,9.3728]
[1755061251973,0.1072,4668.6,4668.3,0.9478]
[1755061252288,0.1072,4668.6,4668.4,0.9478]
[1755061252487,0.1072,4668.6,4668.5,3.289]
[1755061252856,0.1072,4668.6,4668.5,4.2368]
[1755061253782,0.1072,4668.6,4668.5,3.289]
[1755061255331,0.5802,4668.6,4668.2,5.135]
[1755061255498,0.473,4668.5,4668.2,5.135]
[1755061255661,0.473,4668.5,4668.3,3.289]
[1755061256002,0.002,4669.0,4668.3,3.289]
[1755061256174,1.0784,4668.4,4668.3,3.289]
[1755061256587,0.5802,4668.4,4668.3,3.289]
[1755061258884,1.0784,4668.4,4668.3,3.289]
[1755061259975,1.18624,4668.4,4668.2,5.135]
[1755061260191,0.21504,4668.4,4668.3,3.288]
[1755061260371,0.1072,4668.4,4668.3,3.288]
[1755061260810,1.0378,4668.4,4668.3,3.288]
[1755061261692,1.5878,4668.4,4668.3,3.288]
[1755061262999,0.55,4668.3,4668.0,0.001]
[1755061263296,1.4806,4668.3,4668.2,5.135]
[1755061263503,1.85357777,4668.3,4668.2,5.135]
[1755061263702,1.73837643,4668.3,4668.2,5.135]
[1755061263903,1.36539866,4668.3,4667.9,5.135]
[1755061264069,0.9306,4668.2,4668.0,3.288]
[1755061264272,2.14225024,4668.0,4667.5,0.001]
[1755061264485,0.1072,4667.6,4667.5,0.001]
[1755061265000,1.0378,4667.6,4667.5,0.001]
[1755061265376,1.15772548,4667.6,4667.5,1.082]
[1755061265685,0.55,4667.5,4667.2,5.135]
[1755061265880,0.55,4667.3,4667.2,5.135]
[1755061266094,1.4806,4667.3,4667.2,5.135]
[1755061266479,0.55,4667.2,4666.3,0.001]
[1755061266802,0.6572,4667.0,4666.3,0.001]
[1755061267007,0.6572,4667.0,4666.9,6.504]
[1755061267301,1.5878,4667.0,4666.9,6.504]
[1755061268273,0.11992548,4667.6,4666.9,6.504]
[1755061268476,0.1072,4667.0,4666.9,6.504]
[1755061269406,0.1072,4667.0,4666.9,5.136]
[1755061269407,1.0378,4667.0,4666.9,5.136]
[1755061269710,0.6572,4667.0,4666.9,8.424]
[1755061269907,0.1072,4667.0,4666.9,8.424]
[1755061271981,0.1072,4667.0,4666.9,5.136]
[1755061272193,0.1072,4667.0,4666.3,0.001]
[1755061272194,0.55,4666.9,4666.3,0.001]
[1755061272397,0.15878,4666.8,4666.4,3.288]
[1755061272812,0.4453,4666.7,4666.4,3.288]
[1755061272976,0.9306,4666.7,4666.4,3.288]
[1755061273407,0.4853,4666.7,4666.4,3.288]
[1755061273706,0.9306,4666.6,4666.4,3.288]
[1755061274095,0.4453,4666.6,4666.4,3.288]
[1755061274497,0.55,4666.9,4666.4,3.288]
[1755061274826,0.55,4666.7,4666.4,3.288]
[1755061275120,0.55,4666.7,4666.4,3.289]
[1755061275293,0.55,4666.7,4666.5,5.136]
[1755061275493,0.9953,4667.1,4666.5,5.136]
[1755061275714,0.55,4667.4,4666.5,5.136]
[1755061276291,0.55,4667.2,4666.5,5.136]
[1755061277219,0.59336,4667.3,4666.5,5.136]
[1755061277220,0.55,4667.0,4666.6,3.288]
[1755061277418,0.55,4666.8,4666.6,3.288]
[1755061277623,0.55,4667.2,4666.7,3.288]
[1755061277797,0.55,4667.2,4666.5,5.136]
[1755061278198,0.55,4667.0,4666.5,5.136]
[1755061278502,0.55,4666.8,4666.5,5.136]
[1755061278808,1.4806,4666.8,4666.5,5.136]
[1755061279011,1.4806,4666.8,4666.6,3.288]
[1755061279421,1.0353,4666.8,4666.6,3.288]
[1755061279615,0.9953,4666.7,4666.6,3.288]
[1755061279812,1.6514166,4666.7,4666.6,3.288]
[1755061280433,0.7208166,4666.7,4666.6,3.288]
[1755061280598,0.55,4666.7,4666.6,3.288]
[1755061280929,0.9306,4667.9,4666.6,3.288]
[1755061281097,0.9306,4667.9,4666.6,3.7615]
[1755061281524,0.55,4667.8,4666.6,3.7615]
[1755061281924,0.55,4667.6,4666.6,3.288]
[1755061282121,0.55,4667.4,4666.6,3.288]
[1755061282323,0.55,4667.2,4666.5,5.136]
[1755061282523,0.55,4667.0,4666.7,3.287]
[1755061282840,0.55,4667.2,4666.7,3.287]
[1755061283039,0.1072,4666.8,4666.7,3.7605]
[1755061283736,0.1072,4666.8,4666.7,3.287]
[1755061287521,1.0378,4666.8,4666.7,3.287]
[1755061288207,0.55,4666.7,4666.5,5.136]
[1755061288408,0.15878,4666.6,4666.5,5.136]
[1755061288612,0.9306,4666.6,4666.5,5.136]
[1755061289226,1.4806,4666.6,4666.5,5.136]
[1755061289425,1.4806,4666.6,4666.5,8.423]
[1755061292104,0.55,4666.5,4666.4,0.001]
[1755061292308,1.6183,4666.5,4666.4,5.138]
[1755061292616,1.78013,4666.5,4666.4,5.137]
[1755061293335,1.78013,4666.5,4666.4,3.287]
[1755061293636,1.78013,4666.5,4666.3,0.001]
[1755061293835,1.5111,4666.4,4666.3,0.001]
[1755061294936,1.5111,4666.4,4666.3,1.18]
[1755061295115,1.689113,4666.4,4666.3,1.18]
[1755061295321,1.689113,4666.4,4666.3,6.317]
[1755061297953,1.689113,4666.4,4666.3,5.138]
[1755061298246,1.689113,4666.4,4666.3,8.424]
[1755061301253,0.728013,4666.4,4666.3,8.424]
[1755061301455,0.55,4666.4,4666.3,8.424]
[1755061301763,0.55,4666.4,4666.3,5.137]
[1755061301924,0.55,4666.3,4665.8,0.001]
[1755061302134,0.55,4666.3,4665.9,5.137]
[1755061302368,0.55,4666.1,4666.0,3.286]
[1755061302518,1.16771,4666.1,4666.0,5.137]
[1755061302719,1.66221,4666.1,4666.0,5.137]
[1755061302950,0.55,4665.9,4665.8,0.001]
[1755061303257,0.6572,4665.9,4665.8,0.001]
[1755061303419,1.6183,4665.9,4665.8,0.001]
[1755061303751,1.795241,4665.9,4665.8,1.759]
[1755061304924,0.6572,4665.9,4665.8,1.759]
[1755061305369,0.6572,4665.9,4665.8,6.897]
[1755061306120,0.1072,4665.9,4665.8,6.897]
[1755061306834,0.1072,4665.9,4665.8,8.425]
[1755061313192,0.6572,4665.9,4665.8,8.425]
[1755061313351,1.6183,4665.9,4665.8,8.425]
[1755061313550,1.78013,4665.9,4665.8,8.425]
[1755061313975,0.81903,4665.9,4665.8,8.425]
[1755061314179,0.6572,4665.9,4665.8,8.425]
[1755061315998,0.6572,4665.9,4665.8,5.139]
[1755061316166,0.6572,4665.9,4665.8,8.425]
[1755061319274,1.6183,4665.9,4665.8,8.424]
[1755061319661,0.55,4665.8,4665.3,0.001]
[1755061319860,0.76683,4665.7,4665.6,5.138]
[1755061320168,1.68073,4665.7,4665.6,5.138]
[1755061320368,0.55,4665.6,4664.2,0.085697]
[1755061320671,0.1072,4664.3,4663.9,5.138]
[1755061320869,0.1072,4664.3,4663.3,0.4652]
[1755061320870,0.1072,4664.3,4664.0,8.423]
[1755061321072,0.1072,4664.3,4664.1,3.285]
[1755061321285,0.55,4665.5,4664.1,4.2207]
[1755061321493,0.55,4665.5,4664.1,3.285]
[1755061321494,0.1072,4664.2,4664.1,3.285]
[1755061321676,0.002,4666.3,4664.1,3.285]
[1755061321995,0.1072,4664.7,4664.2,0.9357]
[1755061322193,0.1072,4664.7,4664.1,3.285]
[1755061322194,0.1072,4664.7,4664.3,0.9357]
[1755061322392,0.1072,4664.7,4664.4,3.70707]
[1755061322558,0.1072,4664.7,4664.4,4.64277]
[1755061322759,0.1072,4664.7,4664.5,0.9357]
[1755061323070,0.1072,4665.4,4664.6,0.1072]
[1755061323376,0.1072,4665.4,4664.7,4.2207]
[1755061323559,0.1072,4665.4,4664.8,0.222273]
[1755061323754,0.1072,4665.4,4664.8,1.157973]
[1755061324066,0.1072,4665.4,4664.9,0.9357]
[1755061324297,0.002,4666.3,4664.9,0.9357]
[1755061324462,0.1072,4666.0,4665.1,0.1072]
[1755061324793,0.1072,4666.0,4665.2,4.2207]
[1755061324964,0.1072,4666.0,4665.3,0.42207]
[1755061325164,0.1072,4666.0,4665.4,0.9357]
[1755061325381,0.1072,4666.0,4665.5,0.9357]
[1755061325579,0.1072,4666.0,4665.6,4.2207]
[1755061325781,0.1072,4666.0,4665.6,3.285]
[1755061326088,0.1072,4666.0,4665.7,1.157973]
[1755061326689,0.1072,4666.0,4665.8,0.9357]
[1755061327068,0.1072,4666.0,4665.6,0.1072]
[1755061327280,0.1072,4666.0,4665.7,3.284]
[1755061328362,0.1072,4666.0,4665.8,0.4652]
[1755061328662,0.1072,4666.0,4665.7,3.284]
[1755061329462,0.9139,4665.9,4665.7,3.284]
[1755061330101,0.1072,4666.0,4665.8,5.137]
[1755061330517,0.9139,4665.9,4665.8,5.137]
[1755061330796,0.9139,4665.9,4665.8,8.421]
[1755061331592,0.1072,4666.0,4665.8,8.421]
[1755061331809,0.9139,4665.9,4665.8,8.421]
[1755061332712,0.1072,4666.0,4665.8,8.421]
[1755061335289,0.1072,4666.0,4665.9,0.4652]
[1755061336089,0.1072,4666.0,4665.8,8.421]
[1755061336491,0.9139,4665.9,4665.8,5.137]
[1755061336810,0.1072,4666.0,4665.8,8.421]
[1755061341797,0.9139,4665.9,4665.8,8.421]
[1755061342395,0.9139,4665.9,4665.8,5.137]
[1755061342614,0.9139,4665.9,4665.8,8.421]
[1755061343327,1.4639,4665.9,4665.8,8.42]
[1755061343516,1.62101,4665.9,4665.8,8.42]
[1755061343922,1.62101,4665.9,4665.8,5.137]
[1755061344532,1.62101,4665.9,4665.1,2.671]
[1755061344533,0.55,4665.8,4665.1,2.671]
[1755061344840,0.55,4665.6,4665.2,5.137]
[1755061345040,0.55,4665.6,4665.3,3.283]
[1755061345205,0.55,4665.4,4665.3,3.283]
[1755061345406,0.69639,4665.4,4665.3,3.283]
[1755061345625,1.4639,4665.4,4665.3,3.283]
[1755061345937,1.5711,4665.4,4665.3,3.283]
[1755061346926,0.55,4665.3,4664.1,0.001]
[1755061347141,1.4639,4665.3,4664.2,5.138]
[1755061347432,0.55,4665.1,4664.3,3.284]
[1755061347943,0.55,4664.3,4664.2,5.138]
[1755061348140,1.4639,4664.3,4664.2,8.422]
[1755061348305,1.4639,4664.3,4664.2,5.138]
[1755061348718,1.4639,4664.3,4662.4,0.4652]
[1755061349042,0.6572,4663.7,4662.4,0.4652]
[1755061349274,0.1072,4663.7,4662.4,0.4652]
[1755061349442,1.0388,4663.7,4663.6,2.092]
[1755061352865,1.5888,4663.7,4663.6,2.092]
[1755061353769,1.5888,4663.7,4661.9,1.106335]
[1755061353770,0.55,4663.6,4662.0,0.4634]
[1755061354063,1.09048,4663.5,4662.1,2.091]
[1755061354364,0.1072,4662.2,4662.1,2.091]
[1755061354979,0.1072,4662.2,4662.1,3.0307]
[1755061355450,0.1072,4662.2,4662.1,8.1697]
[1755061356262,0.1072,4662.2,4662.1,7.23]
[1755061356580,0.1072,4662.2,4662.1,8.1697]
[1755061357349,0.1072,4662.2,4662.1,6.0787]
[1755061357553,0.1072,4662.2,4662.1,9.3627]
[1755061359880,0.55,4663.7,4662.1,9.3627]
[1755061360042,0.1072,4662.4,4662.2,0.9397]
[1755061360241,0.1072,4662.4,4662.3,0.4634]
[1755061360683,0.1072,4662.4,4662.1,8.423]
[1755061360848,0.1072,4662.4,4662.2,0.4634]
[1755061361468,0.1072,4662.4,4662.1,8.423]
[1755061361662,0.1072,4662.4,4662.3,0.9397]
[1755061362776,0.1072,4662.4,4662.3,0.9407]
[1755061367550,0.1072,4662.4,4662.3,0.4644]
[1755061368673,0.1072,4662.4,4662.3,0.001]
[1755061368855,0.1072,4663.3,4662.3,1.0479]
[1755061369048,0.1072,4663.3,4662.4,0.9397]
[1755061369245,0.1072,4663.3,4662.5,3.43802]
[1755061369677,0.1072,4663.3,4662.6,0.4634]
[1755061369879,0.1072,4663.3,4662.7,0.1072]
[1755061370379,0.1072,4663.3,4662.8,3.284]
[1755061370769,0.1072,4663.3,4662.9,0.9397]
[1755061371278,0.1072,4663.3,4663.0,0.9397]
[1755061371485,0.1072,4663.3,4663.0,0.4634]
[1755061371662,0.1072,4663.3,4663.1,0.4634]
[1755061371854,0.1072,4663.3,4663.2,3.284]
[1755061372053,0.1072,4663.3,4663.2,4.2237]
[1755061372283,0.1072,4663.3,4663.2,3.70637]
[1755061373478,0.1072,4663.3,4663.2,3.284]
[1755061373662,1.0388,4663.3,4663.2,3.284]
[1755061374677,1.0388,4663.3,4663.2,8.424]
[1755061380384,0.1072,4663.3,4663.2,8.424]
[1755061380688,0.1072,4663.3,4663.2,8.8941]
[1755061380990,0.1072,4663.3,4663.2,9.3445]
[1755061381362,0.5381,4663.3,4663.2,8.424]
[1755061381561,1.0259,4663.3,4663.2,5.14]
[1755061381761,1.0259,4663.3,4663.2,8.424]